[Event "British Rapidplay Championship 2023"]
[Site "Mercure Bradford, Bankfield Hotel"]
[Date "2023.04.15"]
[Round "4.22"]
[White "May, Paul"]
[Black "Kisteneva, Liza"]
[Result "0-1"]
[TimeControl "15 minutes plus 10 seconds per move"]
[WhiteElo "1652"]
[BlackElo "2040"]

1. d4 {[%clk 00:15:17]} {[%emt 00:00:02]} d5 {[%clk 00:15:19]} {[%emt
00:00:02]} 2. c4 {[%clk 00:15:26]} {[%emt 00:00:02]} c6 {[%clk 00:15:27]}
{[%emt 00:00:01]} 3. Nc3 {[%clk 00:15:33]} {[%emt 00:00:02]} Nf6 {[%clk
00:15:35]} {[%emt 00:00:02]} 4. e3 {[%clk 00:15:18]} {[%emt 00:00:25]} Nbd7
{[%clk 00:14:59]} {[%emt 00:00:46]} 5. Nf3 {[%clk 00:14:36]} {[%emt 00:00:52]}
e6 {[%clk 00:15:01]} {[%emt 00:00:08]} 6. Qc2 {[%clk 00:14:26]} {[%emt
00:00:19]} Bd6 {[%clk 00:15:01]} {[%emt 00:00:11]} 7. g4 {[%clk 00:14:10]}
{[%emt 00:00:26]} Nxg4 {[%clk 00:12:54]} {[%emt 00:02:17]} 8. Rg1 {[%clk
00:14:03]} {[%emt 00:00:17]} h5 {[%clk 00:10:16]} {[%emt 00:02:49]} 9. h3
{[%clk 00:12:40]} {[%emt 00:01:33]} Nh6 {[%clk 00:10:14]} {[%emt 00:00:12]} 10.
Rxg7 {[%clk 00:10:21]} {[%emt 00:02:29]} Qf6 {[%clk 00:10:16]} {[%emt
00:00:09]} 11. Rh7 {[%clk 00:09:43]} {[%emt 00:00:47]} Rxh7 {[%clk 00:10:23]}
{[%emt 00:00:03]} 12. Qxh7 {[%clk 00:09:50]} {[%emt 00:00:03]} Nf8 {[%clk
00:10:31]} {[%emt 00:00:03]} 13. Qc2 {[%clk 00:07:14]} {[%emt 00:02:45]} Qxf3
{[%clk 00:10:35]} {[%emt 00:00:06]} 14. e4 {[%clk 00:05:33]} {[%emt 00:01:51]}
Ng8 {[%clk 00:09:56]} {[%emt 00:00:49]} 15. exd5 {[%clk 00:03:48]} {[%emt
00:01:55]} exd5 {[%clk 00:10:02]} {[%emt 00:00:05]} 16. cxd5 {[%clk 00:03:25]}
{[%emt 00:00:33]} cxd5 {[%clk 00:07:09]} {[%emt 00:03:03]} 17. Qe2+ {[%clk
00:01:45]} {[%emt 00:01:50]} Qxe2+ {[%clk 00:07:10]} {[%emt 00:00:09]} 18. Bxe2
{[%clk 00:01:52]} {[%emt 00:00:03]} Bb4 {[%clk 00:07:07]} {[%emt 00:00:13]} 19.
Bxh5 {[%clk 00:01:48]} {[%emt 00:00:14]} Bxh3 {[%clk 00:07:13]} {[%emt
00:00:05]} 20. Be3 {[%clk 00:01:19]} {[%emt 00:00:39]} Nf6 {[%clk 00:07:13]}
{[%emt 00:00:10]} 21. Be2 {[%clk 00:01:12]} {[%emt 00:00:15]} Ne4 {[%clk
00:07:12]} {[%emt 00:00:12]} 22. Bd2 {[%clk 00:00:34]} {[%emt 00:00:48]} Nxd2
{[%clk 00:06:44]} {[%emt 00:00:38]} 23. Kxd2 {[%clk 00:00:41]} {[%emt
00:00:04]} Ne6 {[%clk 00:06:46]} {[%emt 00:00:08]} 24. a3 {[%clk 00:00:40]}
{[%emt 00:00:12]} Bxc3+ {[%clk 00:06:46]} {[%emt 00:00:10]} 25. bxc3 {[%clk
00:00:48]} {[%emt 00:00:01]} Ke7 {[%clk 00:06:13]} {[%emt 00:00:43]} 26. Rb1
{[%clk 00:00:35]} {[%emt 00:00:23]} b6 {[%clk 00:06:19]} {[%emt 00:00:04]} 27.
Bf3 {[%clk 00:00:38]} {[%emt 00:00:06]} Kd6 {[%clk 00:06:21]} {[%emt 00:00:08]}
28. Ke3 {[%clk 00:00:12]} {[%emt 00:00:36]} Rc8 {[%clk 00:06:27]} {[%emt
00:00:04]} 29. Rc1 {[%clk 00:00:17]} {[%emt 00:00:05]} Rc4 {[%clk 00:06:19]}
{[%emt 00:00:18]} 30. Be2 {[%clk 00:00:18]} {[%emt 00:00:09]} Ra4 {[%clk
00:06:26]} {[%emt 00:00:03]} 31. Ra1 {[%clk 00:00:26]} {[%emt 00:00:02]} Nc7
{[%clk 00:06:32]} {[%emt 00:00:04]} 32. f4 {[%clk 00:00:31]} {[%emt 00:00:06]}
Bd7 {[%clk 00:06:19]} {[%emt 00:00:22]} 33. Kd2 {[%clk 00:00:38]} {[%emt
00:00:03]} Bb5 {[%clk 00:06:13]} {[%emt 00:00:17]} 34. Bd1 {[%clk 00:00:43]}
{[%emt 00:00:06]} Ra5 {[%clk 00:06:21]} {[%emt 00:00:02]} 35. Bh5 {[%clk
00:00:31]} {[%emt 00:00:21]} f6 {[%clk 00:06:22]} {[%emt 00:00:09]} 36. Kc2
{[%clk 00:00:30]} {[%emt 00:00:12]} Ba4+ {[%clk 00:06:12]} {[%emt 00:00:21]} 37.
Kd3 {[%clk 00:00:30]} {[%emt 00:00:10]} Bb3 {[%clk 00:06:18]} {[%emt 00:00:03]}
38. Bf7 {[%clk 00:00:20]} {[%emt 00:00:20]} Nb5 {[%clk 00:06:17]} {[%emt
00:00:11]} 39. Rb1 {[%clk 00:00:11]} {[%emt 00:00:20]} Rxa3 {[%clk 00:06:21]}
{[%emt 00:00:05]} 40. Be8 {[%clk 00:00:00]} {[%emt 00:00:11]} 0-1

[Event "British Rapidplay Championship 2023"]
[Site "Mercure Bradford, Bankfield Hotel"]
[Date "2023.04.15"]
[Round "4.23"]
[White "Mikalajunas, Kajus"]
[Black "Slinger, AJ (Tony)"]
[Result "1-0"]
[TimeControl "15 minutes plus 10 seconds per move"]
[WhiteElo "1778"]
[BlackElo "1841"]

1. e4 {[%clk 00:15:18]} {[%emt 00:00:01]} c5 {[%clk 00:15:19]} {[%emt
00:00:02]} 2. c3 {[%clk 00:15:26]} {[%emt 00:00:02]} Nf6 {[%clk 00:15:26]}
{[%emt 00:00:02]} 3. e5 {[%clk 00:15:35]} {[%emt 00:00:02]} Nd5 {[%clk
00:15:36]} 4. d4 {[%clk 00:15:44]} {[%emt 00:00:01]} cxd4 {[%clk 00:15:44]} 5.
cxd4 {[%clk 00:15:52]} {[%emt 00:00:01]} d6 {[%clk 00:15:44]} {[%emt 00:00:11]}
6. Nf3 {[%clk 00:16:00]} {[%emt 00:00:01]} e6 {[%clk 00:15:45]} {[%emt
00:00:09]} 7. Bd3 {[%clk 00:16:07]} {[%emt 00:00:03]} Nc6 {[%clk 00:15:48]}
{[%emt 00:00:07]} 8. O-O {[%clk 00:16:11]} {[%emt 00:00:04]} Bd7 {[%clk
00:15:38]} {[%emt 00:00:21]} 9. Nc3 {[%clk 00:16:11]} {[%emt 00:00:11]} Nxc3
{[%clk 00:15:43]} {[%emt 00:00:04]} 10. bxc3 {[%clk 00:16:17]} {[%emt
00:00:03]} dxe5 {[%clk 00:15:45]} {[%emt 00:00:08]} 11. dxe5 {[%clk 00:16:13]}
{[%emt 00:00:14]} Be7 {[%clk 00:15:50]} {[%emt 00:00:04]} 12. Qe2 {[%clk
00:16:08]} {[%emt 00:00:15]} h6 {[%clk 00:15:29]} {[%emt 00:00:31]} 13. Bf4
{[%clk 00:16:09]} {[%emt 00:00:09]} Na5 {[%clk 00:13:22]} {[%emt 00:02:18]} 14.
Rfd1 {[%clk 00:15:49]} {[%emt 00:00:29]} Qc7 {[%clk 00:13:29]} {[%emt
00:00:03]} 15. Nd4 {[%clk 00:15:17]} {[%emt 00:00:42]} a6 {[%clk 00:13:20]}
{[%emt 00:00:19]} 16. Rab1 {[%clk 00:13:14]} {[%emt 00:02:13]} Nc6 {[%clk
00:13:04]} {[%emt 00:00:26]} 17. Be4 {[%clk 00:12:50]} {[%emt 00:00:33]} Rc8
{[%clk 00:12:26]} {[%emt 00:00:48]} 18. Qg4 {[%clk 00:11:47]} {[%emt 00:01:13]}
Kf8 {[%clk 00:12:22]} {[%emt 00:00:14]} 19. Qf3 {[%clk 00:11:04]} {[%emt
00:00:53]} Ke8 {[%clk 00:12:23]} {[%emt 00:00:09]} 20. Bg3 {[%clk 00:09:54]}
{[%emt 00:01:19]} Rb8 {[%clk 00:07:11]} {[%emt 00:05:23]} 21. Nxc6 {[%clk
00:08:38]} {[%emt 00:01:25]} bxc6 {[%clk 00:06:51]} {[%emt 00:00:30]} 22. Rxb8+
{[%clk 00:07:29]} {[%emt 00:01:20]} Qxb8 {[%clk 00:07:00]} {[%emt 00:00:02]} 23.
Bxc6 {[%clk 00:07:11]} {[%emt 00:00:27]} Bxc6 {[%clk 00:07:07]} {[%emt
00:00:03]} 24. Qxc6+ {[%clk 00:07:19]} {[%emt 00:00:02]} Kf8 {[%clk 00:07:15]}
{[%emt 00:00:02]} 25. Qxa6 {[%clk 00:07:06]} {[%emt 00:00:24]} g6 {[%clk
00:06:57]} {[%emt 00:00:28]} 26. h4 {[%clk 00:06:45]} {[%emt 00:00:31]} Kg7
{[%clk 00:07:05]} {[%emt 00:00:02]} 27. Rd7 {[%clk 00:06:31]} {[%emt 00:00:24]}
Re8 {[%clk 00:07:09]} {[%emt 00:00:05]} 28. a4 {[%clk 00:05:31]} {[%emt
00:01:11]} g5 {[%clk 00:05:19]} {[%emt 00:02:00]} 29. hxg5 {[%clk 00:04:53]}
{[%emt 00:00:48]} hxg5 {[%clk 00:05:27]} {[%emt 00:00:02]} 30. Qb7 {[%clk
00:04:33]} {[%emt 00:00:30]} 1-0

[ePGN "0.1;DGT LiveChess/2.2.5"]

[Event "British Rapidplay Championship 2023"]
[Site "Mercure Bradford, Bankfield Hotel"]
[Date "2023.04.15"]
[Round "5.1"]
[White "Shaw, Peter"]
[Black "Ghasi, Ameet K"]
[Result "0-1"]
[TimeControl "15 minutes plus 10 seconds per move"]
[WhiteElo "2231"]
[BlackElo "2631"]

1. d4 {[%clk 00:15:18]} {[%emt 00:00:02]} Nf6 {[%clk 00:14:41]} {[%emt
00:00:39]} 2. c4 {[%clk 00:15:25]} {[%emt 00:00:03]} g6 {[%clk 00:14:47]}
{[%emt 00:00:03]} 3. Nc3 {[%clk 00:15:33]} {[%emt 00:00:03]} Bg7 {[%clk
00:14:56]} {[%emt 00:00:01]} 4. e4 {[%clk 00:15:41]} {[%emt 00:00:01]} d6
{[%clk 00:15:05]} {[%emt 00:00:01]} 5. Nf3 {[%clk 00:15:49]} {[%emt 00:00:02]}
O-O {[%clk 00:15:10]} {[%emt 00:00:05]} 6. Be2 {[%clk 00:15:57]} {[%emt
00:00:03]} e5 {[%clk 00:15:05]} {[%emt 00:00:15]} 7. Be3 {[%clk 00:16:05]}
{[%emt 00:00:02]} Bg4 {[%clk 00:14:51]} {[%emt 00:00:23]} 8. d5 {[%clk
00:15:51]} {[%emt 00:00:24]} a5 {[%clk 00:13:40]} {[%emt 00:01:22]} 9. Nd2
{[%clk 00:14:51]} {[%emt 00:01:10]} Bd7 {[%clk 00:13:47]} {[%emt 00:00:03]} 10.
O-O {[%clk 00:13:51]} {[%emt 00:01:10]} Na6 {[%clk 00:13:53]} {[%emt 00:00:04]}
11. a3 {[%clk 00:12:52]} {[%emt 00:01:09]} Ne8 {[%clk 00:13:45]} {[%emt
00:00:15]} 12. Rb1 {[%clk 00:12:05]} {[%emt 00:01:00]} f5 {[%clk 00:11:06]}
{[%emt 00:02:49]} 13. f3 {[%clk 00:12:12]} {[%emt 00:00:03]} Bf6 {[%clk
00:10:21]} {[%emt 00:00:55]} 14. b4 {[%clk 00:11:39]} {[%emt 00:00:42]} Bg5
{[%clk 00:10:30]} {[%emt 00:00:02]} 15. Bf2 {[%clk 00:11:34]} {[%emt 00:00:15]}
b6 {[%clk 00:09:37]} {[%emt 00:01:03]} 16. bxa5 {[%clk 00:07:22]} {[%emt
00:04:22]} bxa5 {[%clk 00:09:41]} {[%emt 00:00:06]} 17. Nb3 {[%clk 00:07:31]}
{[%emt 00:00:02]} c5 {[%clk 00:05:15]} {[%emt 00:04:35]} 18. dxc6 {[%clk
00:07:12]} {[%emt 00:00:30]} Bxc6 {[%clk 00:05:23]} {[%emt 00:00:01]} 19. Nd5
{[%clk 00:06:08]} {[%emt 00:01:14]} fxe4 {[%clk 00:02:30]} {[%emt 00:03:03]} 20.
fxe4 {[%clk 00:06:13]} {[%emt 00:00:05]} a4 {[%clk 00:01:27]} {[%emt 00:01:13]}
21. Bb6 {[%clk 00:04:36]} {[%emt 00:01:47]} Rxf1+ {[%clk 00:01:36]} 22. Bxf1
{[%clk 00:04:15]} {[%emt 00:00:31]} Qd7 {[%clk 00:01:42]} {[%emt 00:00:03]} 23.
Na5 {[%clk 00:04:08]} {[%emt 00:00:18]} Kg7 {[%clk 00:01:42]} {[%emt 00:00:09]}
24. Nxc6 {[%clk 00:03:42]} {[%emt 00:00:36]} Qxc6 {[%clk 00:01:51]} {[%emt
00:00:02]} 25. Qg4 {[%clk 00:03:49]} {[%emt 00:00:02]} Bf6 {[%clk 00:01:01]}
{[%emt 00:01:01]} 26. Be3 {[%clk 00:02:39]} {[%emt 00:01:20]} Nc5 {[%clk
00:01:01]} {[%emt 00:00:10]} 27. Rb6 {[%clk 00:01:59]} {[%emt 00:00:50]} Qc8
{[%clk 00:01:10]} {[%emt 00:00:01]} 28. Qf3 {[%clk 00:01:30]} {[%emt 00:00:39]}
Ra6 {[%clk 00:00:59]} {[%emt 00:00:21]} 29. Rxa6 {[%clk 00:01:26]} {[%emt
00:00:14]} Qxa6 {[%clk 00:00:59]} {[%emt 00:00:10]} 30. Qh3 {[%clk 00:00:53]}
{[%emt 00:00:43]} Qc6 {[%clk 00:00:51]} {[%emt 00:00:18]} 31. Bh6+ {[%clk
00:00:24]} {[%emt 00:00:39]} Kg8 {[%clk 00:00:35]} {[%emt 00:00:26]} 32. Qf3
{[%clk 00:00:32]} {[%emt 00:00:02]} Kf7 {[%clk 00:00:23]} {[%emt 00:00:22]} 33.
h4 {[%clk 00:00:32]} {[%emt 00:00:10]} Qb7 {[%clk 00:00:15]} {[%emt 00:00:18]}
34. h5 {[%clk 00:00:34]} {[%emt 00:00:08]} Qb1 {[%clk 00:00:16]} {[%emt
00:00:09]} 35. hxg6+ {[%clk 00:00:32]} {[%emt 00:00:12]} hxg6 {[%clk 00:00:24]}
{[%emt 00:00:03]} 36. Bg5 {[%clk 00:00:17]} {[%emt 00:00:25]} Nxe4 {[%clk
00:00:30]} {[%emt 00:00:03]} 37. Bxf6 {[%clk 00:00:20]} {[%emt 00:00:07]} N4xf6
{[%clk 00:00:32]} {[%emt 00:00:08]} 38. Nb4 {[%clk 00:00:15]} {[%emt 00:00:15]}
Qe4 {[%clk 00:00:36]} {[%emt 00:00:03]} 39. Qxe4 {[%clk 00:00:12]} {[%emt
00:00:15]} Nxe4 {[%clk 00:00:46]} {[%emt 00:00:02]} 40. Bd3 {[%clk 00:00:19]}
{[%emt 00:00:03]} Nc5 {[%clk 00:00:49]} {[%emt 00:00:06]} 41. Bc2 {[%clk
00:00:28]} {[%emt 00:00:02]} Nf6 {[%clk 00:00:51]} {[%emt 00:00:07]} 42. Na2
{[%clk 00:00:35]} {[%emt 00:00:02]} Nfd7 {[%clk 00:00:59]} {[%emt 00:00:02]} 43.
Nc3 {[%clk 00:00:43]} {[%emt 00:00:01]} Nb6 {[%clk 00:01:09]} {[%emt 00:00:02]}
0-1

[Event "British Rapidplay Championship 2023"]
[Site "Mercure Bradford, Bankfield Hotel"]
[Date "2023.04.15"]
[Round "5.2"]
[White "Gormally, Daniel W"]
[Black "Walton, Alan J"]
[Result "1-0"]
[TimeControl "15 minutes plus 10 seconds per move"]
[WhiteElo "2570"]
[BlackElo "2105"]

1. d4 {[%clk 00:15:19]} d5 {[%clk 00:15:19]} {[%emt 00:00:02]} 2. c4 {[%clk
00:15:28]} {[%emt 00:00:01]} c6 {[%clk 00:15:21]} {[%emt 00:00:07]} 3. Nf3
{[%clk 00:15:37]} {[%emt 00:00:01]} Nf6 {[%clk 00:15:19]} {[%emt 00:00:12]} 4.
Nc3 {[%clk 00:15:46]} dxc4 {[%clk 00:15:15]} {[%emt 00:00:15]} 5. e4 {[%clk
00:15:54]} {[%emt 00:00:02]} e6 {[%clk 00:13:56]} {[%emt 00:01:29]} 6. Bxc4
{[%clk 00:16:00]} {[%emt 00:00:04]} Bb4 {[%clk 00:14:01]} {[%emt 00:00:05]} 7.
Qe2 {[%clk 00:16:01]} {[%emt 00:00:09]} Nbd7 {[%clk 00:13:08]} {[%emt
00:01:03]} 8. O-O {[%clk 00:16:07]} {[%emt 00:00:05]} O-O {[%clk 00:12:17]}
{[%emt 00:01:00]} 9. e5 {[%clk 00:16:15]} {[%emt 00:00:02]} Nd5 {[%clk
00:12:22]} {[%emt 00:00:05]} 10. Nxd5 {[%clk 00:16:24]} {[%emt 00:00:02]} cxd5
{[%clk 00:12:14]} {[%emt 00:00:18]} 11. Bd3 {[%clk 00:16:33]} f5 {[%clk
00:11:41]} {[%emt 00:00:44]} 12. exf6 {[%clk 00:16:23]} {[%emt 00:00:19]} Nxf6
{[%clk 00:11:48]} {[%emt 00:00:03]} 13. Bg5 {[%clk 00:15:43]} {[%emt 00:00:51]}
Qe8 {[%clk 00:11:26]} {[%emt 00:00:32]} 14. Ne5 {[%clk 00:15:20]} {[%emt
00:00:33]} Qh5 {[%clk 00:10:30]} {[%emt 00:01:06]} 15. Qxh5 {[%clk 00:15:28]}
{[%emt 00:00:03]} Nxh5 {[%clk 00:10:38]} {[%emt 00:00:01]} 16. g3 {[%clk
00:15:12]} {[%emt 00:00:26]} Bd6 {[%clk 00:10:30]} {[%emt 00:00:19]} 17. Rac1
{[%clk 00:15:06]} {[%emt 00:00:15]} Nf6 {[%clk 00:10:29]} {[%emt 00:00:11]} 18.
Rfe1 {[%clk 00:14:57]} {[%emt 00:00:20]} Nd7 {[%clk 00:09:30]} {[%emt
00:01:09]} 19. Rxc8 {[%clk 00:14:56]} {[%emt 00:00:11]} 1-0

[Event "British Rapidplay Championship 2023"]
[Site "Mercure Bradford, Bankfield Hotel"]
[Date "2023.04.15"]
[Round "5.3"]
[White "Makkar, Rajat"]
[Black "Wells, Peter K"]
[Result "1-0"]
[TimeControl "15 minutes plus 10 seconds per move"]
[WhiteElo "2297"]
[BlackElo "2466"]

1. Nf3 {[%clk 00:15:17]} {[%emt 00:00:04]} c5 {[%clk 00:15:13]} {[%emt
00:00:07]} 2. c4 {[%clk 00:15:21]} {[%emt 00:00:06]} Nc6 {[%clk 00:15:17]}
{[%emt 00:00:05]} 3. e3 {[%clk 00:15:29]} {[%emt 00:00:03]} Nf6 {[%clk
00:14:46]} {[%emt 00:00:41]} 4. Nc3 {[%clk 00:15:26]} {[%emt 00:00:13]} g6
{[%clk 00:13:13]} {[%emt 00:01:43]} 5. d4 {[%clk 00:15:34]} {[%emt 00:00:02]}
cxd4 {[%clk 00:13:21]} {[%emt 00:00:02]} 6. exd4 {[%emt 00:00:01]} d5 {[%clk
00:13:30]} 7. cxd5 {[%clk 00:15:51]} {[%emt 00:00:02]} Nxd5 {[%clk 00:13:39]}
{[%emt 00:00:01]} 8. Bc4 {[%clk 00:16:00]} {[%emt 00:00:01]} Nxc3 {[%clk
00:12:56]} {[%emt 00:00:53]} 9. Qb3 {[%clk 00:16:09]} {[%emt 00:00:01]} Nd5
{[%clk 00:13:04]} {[%emt 00:00:02]} 10. Bxd5 {[%clk 00:16:13]} {[%emt
00:00:05]} e6 {[%clk 00:13:13]} {[%emt 00:00:01]} 11. Bxc6+ {[%clk 00:16:05]}
{[%emt 00:00:18]} bxc6 {[%clk 00:13:21]} {[%emt 00:00:02]} 12. Bg5 {[%clk
00:14:40]} {[%emt 00:01:35]} f6 {[%clk 00:13:20]} {[%emt 00:00:11]} 13. Bd2
{[%clk 00:14:00]} {[%emt 00:00:52]} Qd5 {[%clk 00:12:33]} {[%emt 00:00:56]} 14.
O-O {[%clk 00:13:45]} {[%emt 00:00:24]} Bd6 {[%clk 00:11:05]} {[%emt 00:01:38]}
15. Rfc1 {[%clk 00:12:04]} {[%emt 00:01:52]} Bd7 {[%clk 00:10:13]} {[%emt
00:01:02]} 16. Qb7 {[%clk 00:10:34]} {[%emt 00:01:40]} O-O {[%clk 00:09:23]}
{[%emt 00:01:00]} 17. Kh1 {[%clk 00:09:43]} {[%emt 00:01:01]} Rfd8 {[%clk
00:09:04]} {[%emt 00:00:29]} 18. b4 {[%clk 00:09:07]} {[%emt 00:00:46]} g5
{[%clk 00:06:50]} {[%emt 00:02:24]} 19. h3 {[%clk 00:07:17]} {[%emt 00:02:00]}
a6 {[%clk 00:05:32]} {[%emt 00:01:28]} 20. Rc5 {[%clk 00:04:54]} {[%emt
00:02:33]} Bxc5 {[%clk 00:05:35]} {[%emt 00:00:07]} 21. bxc5 {[%clk 00:05:03]}
Be8 {[%clk 00:04:37]} {[%emt 00:01:08]} 22. Qe7 {[%clk 00:04:40]} {[%emt
00:00:33]} Qf5 {[%clk 00:04:03]} {[%emt 00:00:44]} 23. Re1 {[%clk 00:04:49]}
{[%emt 00:00:02]} Rd7 {[%clk 00:01:18]} {[%emt 00:02:54]} 24. Qxe6+ {[%clk
00:04:57]} {[%emt 00:00:02]} Qxe6 {[%clk 00:01:27]} 25. Rxe6 {[%clk 00:05:06]}
{[%emt 00:00:01]} Rf7 {[%clk 00:01:24]} {[%emt 00:00:13]} 26. d5 {[%clk
00:04:44]} {[%emt 00:00:33]} cxd5 {[%clk 00:01:25]} {[%emt 00:00:08]} 27. Bc3
{[%clk 00:04:53]} Bd7 {[%clk 00:01:00]} {[%emt 00:00:34]} 28. Rd6 {[%clk
00:05:02]} {[%emt 00:00:01]} g4 {[%clk 00:00:39]} {[%emt 00:00:32]} 29. hxg4
{[%clk 00:04:08]} {[%emt 00:01:04]} Bxg4 {[%clk 00:00:43]} {[%emt 00:00:06]} 30.
Nd4 {[%clk 00:04:12]} {[%emt 00:00:06]} Rd7 {[%clk 00:00:15]} {[%emt 00:00:38]}
31. Rxf6 {[%clk 00:04:09]} {[%emt 00:00:13]} Rf8 {[%clk 00:00:24]} {[%emt
00:00:01]} 32. Rxf8+ {[%clk 00:03:29]} {[%emt 00:00:50]} Kxf8 {[%clk 00:00:33]}
{[%emt 00:00:02]} 33. f3 {[%clk 00:03:38]} Bh5 {[%clk 00:00:14]} {[%emt
00:00:29]} 34. c6 {[%clk 00:03:31]} {[%emt 00:00:17]} Rd8 {[%clk 00:00:17]}
{[%emt 00:00:07]} 35. Bb4+ {[%clk 00:02:32]} {[%emt 00:01:09]} Ke8 {[%clk
00:00:22]} {[%emt 00:00:05]} 36. Nf5 {[%clk 00:02:40]} {[%emt 00:00:02]} Bg6
{[%clk 00:00:19]} {[%emt 00:00:13]} 37. Ne7 {[%clk 00:02:40]} {[%emt 00:00:10]}
1-0

[Event "British Rapidplay Championship 2023"]
[Site "Mercure Bradford, Bankfield Hotel"]
[Date "2023.04.15"]
[Round "5.4"]
[White "Lau, Luke"]
[Black "Ashton, Adam G"]
[Result "1/2-1/2"]
[TimeControl "15 minutes plus 10 seconds per move"]
[WhiteElo "1917"]
[BlackElo "2390"]

1. e4 {[%clk 00:15:15]} {[%emt 00:00:04]} e5 {[%clk 00:15:03]} {[%emt
00:00:17]} 2. Nf3 {[%clk 00:15:22]} {[%emt 00:00:04]} Nc6 {[%clk 00:15:11]}
{[%emt 00:00:01]} 3. d4 {[%clk 00:15:31]} exd4 {[%clk 00:15:20]} {[%emt
00:00:01]} 4. Nxd4 {[%clk 00:15:40]} {[%emt 00:00:02]} Nf6 {[%clk 00:14:46]}
{[%emt 00:00:43]} 5. Nxc6 {[%clk 00:15:22]} {[%emt 00:00:29]} bxc6 {[%clk
00:14:54]} {[%emt 00:00:01]} 6. Nd2 {[%clk 00:15:23]} {[%emt 00:00:09]} d5
{[%clk 00:13:03]} {[%emt 00:02:01]} 7. exd5 {[%clk 00:15:29]} {[%emt 00:00:05]}
cxd5 {[%clk 00:13:07]} {[%emt 00:00:07]} 8. Bb5+ {[%clk 00:15:35]} {[%emt
00:00:02]} Bd7 {[%clk 00:13:15]} {[%emt 00:00:03]} 9. Bxd7+ {[%clk 00:15:43]}
{[%emt 00:00:02]} Qxd7 {[%clk 00:13:21]} {[%emt 00:00:03]} 10. O-O {[%clk
00:15:49]} {[%emt 00:00:04]} Be7 {[%clk 00:13:11]} {[%emt 00:00:21]} 11. Qf3
{[%clk 00:15:21]} {[%emt 00:00:38]} O-O {[%clk 00:13:07]} {[%emt 00:00:13]} 12.
b3 {[%clk 00:15:09]} {[%emt 00:00:22]} Rfe8 {[%clk 00:10:00]} {[%emt 00:03:17]}
13. Bb2 {[%clk 00:13:20]} {[%emt 00:01:59]} Ng4 {[%clk 00:08:54]} {[%emt
00:01:16]} 14. h3 {[%clk 00:10:20]} {[%emt 00:03:11]} Bf6 {[%clk 00:08:43]}
{[%emt 00:00:21]} 15. Bxf6 {[%clk 00:10:18]} {[%emt 00:00:12]} Nxf6 {[%clk
00:08:50]} {[%emt 00:00:03]} 16. Rfd1 {[%clk 00:10:21]} {[%emt 00:00:06]} a5
{[%clk 00:07:47]} {[%emt 00:01:13]} 17. Nf1 {[%clk 00:07:04]} {[%emt 00:03:27]}
a4 {[%clk 00:06:34]} {[%emt 00:01:24]} 18. Ne3 {[%clk 00:07:02]} {[%emt
00:00:11]} c6 {[%clk 00:04:23]} {[%emt 00:02:22]} 19. c4 {[%clk 00:04:22]}
{[%emt 00:02:50]} axb3 {[%clk 00:04:29]} {[%emt 00:00:05]} 20. cxd5 {[%clk
00:04:13]} {[%emt 00:00:19]} cxd5 {[%clk 00:04:37]} {[%emt 00:00:01]} 21. axb3
{[%clk 00:04:12]} {[%emt 00:00:11]} Rxa1 {[%clk 00:04:37]} {[%emt 00:00:10]} 22.
Rxa1 {[%clk 00:04:21]} {[%emt 00:00:02]} d4 {[%clk 00:04:26]} {[%emt 00:00:20]}
23. Rd1 {[%clk 00:03:58]} {[%emt 00:00:33]} Rd8 {[%clk 00:01:53]} {[%emt
00:02:43]} 24. Nc4 {[%clk 00:03:48]} {[%emt 00:00:20]} h6 {[%clk 00:01:49]}
{[%emt 00:00:13]} 25. Qf4 {[%clk 00:02:54]} {[%emt 00:01:05]} Qd5 {[%clk
00:01:27]} {[%emt 00:00:32]} 26. Rd3 {[%clk 00:02:20]} {[%emt 00:00:44]} Qe4
{[%clk 00:01:10]} {[%emt 00:00:26]} 27. Qxe4 {[%clk 00:01:50]} {[%emt
00:00:41]} Nxe4 {[%clk 00:01:18]} {[%emt 00:00:02]} 28. b4 {[%clk 00:01:55]}
{[%emt 00:00:05]} Nc3 {[%clk 00:01:19]} {[%emt 00:00:09]} 29. Kh2 {[%clk
00:01:43]} {[%emt 00:00:22]} Nb5 {[%clk 00:01:27]} {[%emt 00:00:03]} 30. Na3
{[%clk 00:01:15]} {[%emt 00:00:37]} Nxa3 {[%clk 00:00:57]} {[%emt 00:00:40]} 31.
Rxa3 {[%clk 00:01:24]} {[%emt 00:00:01]} d3 {[%clk 00:01:04]} {[%emt 00:00:03]}
32. Ra1 {[%clk 00:01:34]} d2 {[%clk 00:00:30]} {[%emt 00:00:32]} 1/2-1/2